fUSD/lending_fUSD_20260118
["ID","MTS","AMOUNT","RATE_DAILY","PERIOD"]
[402643656,1768741840729,-3920.07051731,0.00015878,2]
[402643657,1768741840738,-200.0,0.000159,2]
[402643658,1768741840748,-239.03553082,0.0001591,2]
[402643659,1768741840757,-315.0,0.00015921,2]
[402643660,1768741840766,-150.0,0.00015926,2]
[402643661,1768741840776,-500.0,0.00015926,2]
[402643662,1768741840785,-250.17696529,0.00015926,2]
[402643663,1768741840794,-500.0,0.00015973,2]
[402643664,1768741840803,-500.0,0.00015973,2]
[402643665,1768741840813,-304.23142224,0.00015973,2]
[402643666,1768741840822,-618.07402305,0.00015973,2]
[402643667,1768741840832,-500.0,0.00015973,2]
[402643668,1768741840842,-500.0,0.00015973,2]
[402643669,1768741840851,-150.0,0.00015981,2]
[402643670,1768741840860,-500.0,0.00015981,2]
[402643671,1768741840870,-285.12441334,0.00016,2]
[402643672,1768741840879,-500.0,0.00016,2]
[402643673,1768741840888,-150.0,0.00016036,2]
[402643674,1768741840897,-501.86548223,0.00016036,2]
[402643675,1768741840906,-248.89680859,0.00016043,2]
[402643676,1768741840920,-500.0,0.00016055,2]
[402643677,1768741840930,-662.88,0.00016082,2]
[402643678,1768741840938,-483.79,0.00016082,2]
[402643679,1768741840948,-662.88,0.00016082,2]
[402643680,1768741840958,-483.79,0.00016082,2]
[402643681,1768741840968,-150.0,0.0001609,2]
[402643682,1768741840977,-500.0,0.0001611,2]
[402643683,1768741840986,-150.0,0.00016145,2]
[402643684,1768741840996,-200.0,0.00016154,2]
[402643685,1768741841005,-500.0,0.00016164,2]
[402643686,1768741841015,-4348.97472501,0.00016167,2]
[402643687,1768741841026,-3920.07051731,0.00016167,2]
[402643688,1768741841036,-796.0,0.00016174,2]
[402643689,1768741841046,-150.0,0.000162,2]
[402643690,1768741841055,-150.0,0.000162,2]
[402643691,1768741841065,-150.0,0.000162,2]
[402643692,1768741841074,-150.0,0.000162,2]
[402643693,1768741841083,-150.0,0.000162,2]
[402643694,1768741841093,-150.0,0.000162,2]
[402643695,1768741841103,-150.39481531,0.000162,2]
[402643696,1768741841112,-150.62813761,0.000162,2]
[402643697,1768741841122,-150.0,0.000162,2]
[402643698,1768741841137,-170.37649707,0.000162,2]
[402643699,1768741841146,-150.0,0.000162,2]
[402643700,1768741841154,-150.48546304,0.000162,2]
[402643701,1768741841163,-150.0,0.000162,2]
[402643702,1768741841172,-150.0,0.000162,2]
[402643703,1768741841181,-500.0,0.00016219,2]
[402643704,1768741841191,-500.0,0.00016274,2]
[402643705,1768741841200,-500.0,0.00016329,2]
[402643706,1768741841209,-500.0,0.00016384,2]
[402643707,1768741841218,-166.66,0.00016393,2]
[402643708,1768741841227,-210.0,0.000164,2]
[402643709,1768741841236,-248.89680859,0.00016414,2]
[402643710,1768741841244,-1000.0,0.00016438,2]
[402643711,1768741841254,-1000.0,0.00016438,2]
[402643712,1768741841264,-671.44774677,0.00016438,2]
[402643713,1768741841273,-1554.6,0.00016438,2]
[402643714,1768741841282,-212.23328331,0.00016438,2]
[402643715,1768741841291,-500.0,0.00016438,2]
[402643716,1768741841300,-500.0,0.00016438,2]
[402643717,1768741841309,-500.0,0.00016438,2]
[402643718,1768741841318,-500.0,0.00016438,2]
[402643719,1768741841327,-500.0,0.00016438,2]
[402643720,1768741841336,-500.0,0.00016438,2]
[402643721,1768741841346,-500.0,0.00016438,2]
[402643722,1768741841355,-453.88065574,0.00016438,2]
[402643723,1768741841363,-500.0,0.00016438,2]
[402643724,1768741841373,-500.0,0.00016438,2]
[402643725,1768741841381,-600.0,0.00016438,2]
[402643726,1768741841391,-926.0,0.00016438,2]
[402643727,1768741841400,-500.0,0.00016438,2]
[402643728,1768741841409,-4348.97472501,0.00016456,2]
[402643729,1768741841420,-3920.07051731,0.00016456,2]
[402643730,1768741841430,-538.02487405,0.00016493,2]
[402643731,1768741841442,-1000.0,0.00016521,2]
[402643732,1768741841451,-1000.0,0.00016521,2]
[402643733,1768741841461,-1000.0,0.00016521,2]
[402643734,1768741841470,-195.0,0.00016569,2]
[402643735,1768741841480,-150.49,0.00016581,2]
[402643736,1768741841489,-1680.0,0.00016684,2]
[402643737,1768741841498,-1554.6,0.00016712,2]
[402643738,1768741841507,-600.0,0.00016712,2]
[402643739,1768741841516,-4348.97472501,0.00016744,2]
[402643740,1768741841534,-3920.07051731,0.00016744,2]
[402643741,1768741841545,-248.89680859,0.00016786,2]
[402643742,1768741841555,-915.0,0.00016945,2]
[402643743,1768741841565,-1202.0,0.00016945,2]
[402643744,1768741841574,-200.0,0.00016978,2]
[402643745,1768741841584,-796.0,0.00016983,2]
[402643746,1768741841594,-1554.6,0.00016986,2]
[402643747,1768741841604,-600.0,0.00016986,2]
[402643748,1768741841614,-500.0,0.00017,7]
[402643749,1768741841624,-500.0,0.00017,7]
[402643750,1768741841634,-500.0,0.00017,7]
[402643751,1768741841643,-500.0,0.00017,7]
[402643752,1768741841653,-500.0,0.00017,7]
[402643753,1768741841662,-500.0,0.00017,7]
[402643754,1768741841672,-500.0,0.00017,7]
[402643755,1768741841682,-500.0,0.00017,7]
[402643756,1768741841692,-500.0,0.00017,7]
[402643757,1768741841702,-500.0,0.00017,7]
[402643758,1768741841711,-500.0,0.00017,7]
[402643759,1768741841720,-500.0,0.00017,7]
[402643760,1768741841730,-500.0,0.00017,7]
[402643761,1768741841739,-500.0,0.00017,7]
[402643762,1768741841748,-500.0,0.00017,7]
[402643763,1768741841757,-500.0,0.00017,7]
[402643764,1768741841766,-500.0,0.00017,7]
[402643765,1768741841775,-500.0,0.00017,7]
[402643766,1768741841784,-500.0,0.00017,7]
[402643767,1768741841793,-500.0,0.00017,7]
[402643768,1768741841802,-500.0,0.00017,7]
[402643769,1768741841811,-500.0,0.00017,7]
[402643770,1768741841820,-500.0,0.00017,7]
[402643771,1768741841830,-500.0,0.00017,7]
[402643772,1768741841839,-500.0,0.00017,7]
[402643773,1768741841848,-512.58,0.00017,7]
[402643774,1768741841858,-500.0,0.00017,7]
[402643775,1768741841867,-500.0,0.00017,7]
[402643776,1768741841877,-500.0,0.00017,7]
[402643777,1768741841886,-500.0,0.00017,7]
[402643778,1768741841895,-500.0,0.00017,7]
[402643779,1768741841905,-500.0,0.00017,7]
[402643780,1768741841915,-500.0,0.00017,7]
[402643781,1768741841924,-500.0,0.00017,7]
[402643782,1768741841933,-500.0,0.00017,7]
[402643783,1768741841943,-500.0,0.00017,7]
[402643784,1768741841953,-500.0,0.00017,7]
[402643785,1768741841962,-500.0,0.00017,7]
[402643786,1768741841971,-500.0,0.00017,7]
[402643787,1768741841980,-500.0,0.00017,7]
[402643788,1768741841989,-500.0,0.00017,7]
[402643789,1768741841998,-500.0,0.00017,7]
[402643790,1768741842007,-500.0,0.00017,7]
[402643791,1768741842016,-500.0,0.00017,7]
[402643792,1768741842026,-500.0,0.00017,7]
[402643793,1768741842035,-500.0,0.00017,7]
[402643794,1768741842046,-500.0,0.00017,7]
[402643795,1768741842055,-500.0,0.00017,7]
[402643796,1768741842064,-500.0,0.00017,7]
[402643797,1768741842075,-500.0,0.00017,7]
[402643798,1768741842084,-500.0,0.00017,7]
[402643799,1768741842093,-500.0,0.00017,7]
[402643800,1768741842103,-500.0,0.00017,7]
[402643801,1768741842113,-500.0,0.00017,7]
[402643802,1768741842123,-500.0,0.00017,7]
[402643803,1768741842137,-500.0,0.00017,7]
[402643804,1768741842146,-500.0,0.00017,7]
[402643805,1768741842155,-500.0,0.00017,7]
[402643806,1768741842165,-500.0,0.00017,7]
[402643807,1768741842174,-500.0,0.00017,7]
[402643808,1768741842183,-500.0,0.00017,7]
[402643809,1768741842192,-500.0,0.00017,7]
[402643810,1768741842202,-500.0,0.00017,7]
[402643811,1768741842211,-500.0,0.00017,7]
[402643812,1768741842220,-500.0,0.00017,7]
[402643813,1768741842229,-500.0,0.00017,7]
[402643814,1768741842238,-500.0,0.00017,7]
[402643815,1768741842249,-500.0,0.00017,7]
[402643816,1768741842259,-500.0,0.00017,7]
[402643817,1768741842268,-500.0,0.00017,7]
[402643818,1768741842278,-500.0,0.00017,7]
[402643819,1768741842287,-500.0,0.00017,7]
[402643820,1768741842296,-500.0,0.00017,7]
[402643821,1768741842304,-500.0,0.00017,7]
[402643822,1768741842313,-500.0,0.00017,7]
[402643823,1768741842323,-500.0,0.00017,7]
[402643824,1768741842332,-500.0,0.00017,7]
[402643825,1768741842340,-308.5,0.00017,7]
[402643826,1768741842350,-500.0,0.00017,7]
[402643827,1768741842359,-500.0,0.00017,7]
[402643828,1768741842368,-500.0,0.00017,7]
[402643829,1768741842378,-500.0,0.00017,7]
[402643830,1768741842387,-500.0,0.00017,7]
[402643831,1768741842397,-500.0,0.00017,7]
[402643832,1768741842406,-500.0,0.00017,7]
[402643833,1768741842415,-500.0,0.00017,7]
[402643834,1768741842424,-500.0,0.00017,7]
[402643835,1768741842433,-500.0,0.00017,7]
[402643836,1768741842442,-500.0,0.00017,7]
[402643837,1768741842451,-500.0,0.00017,7]
[402643838,1768741842461,-500.0,0.00017,7]
[402643839,1768741842470,-500.0,0.00017,7]
[402643840,1768741842479,-500.0,0.00017,7]
[402643841,1768741842488,-500.0,0.00017,7]
[402643842,1768741842497,-500.0,0.00017,7]
[402643843,1768741842506,-500.0,0.00017,7]
[402643844,1768741842516,-500.0,0.00017,7]
[402643845,1768741842525,-500.0,0.00017,7]
[402643846,1768741842534,-250.0,0.00017,2]
[402643847,1768741842543,-500.0,0.00017,7]
[402643848,1768741842553,-500.0,0.00017,7]
[402643849,1768741842562,-500.0,0.00017,7]
[402643850,1768741842572,-824.3,0.00017017,2]
[402643851,1768741842582,-4348.97472501,0.00017033,2]
[402643852,1768741842591,-3920.07051731,0.00017033,2]
[402643853,1768741842600,-833.0,0.0001704,2]
[402643854,1768741842609,-483.79,0.00017041,2]
[402643855,1768741842619,-483.79,0.00017041,2]
[402643856,1768741842629,-508.56,0.00017041,2]
[402643857,1768741842639,-166.66,0.00017043,2]
[402643858,1768741842648,-1000.0,0.00017068,2]
[402643859,1768741842658,-4001.0,0.00017099,2]
[402643860,1768741842667,-660.99739858,0.00017099,2]
[402643861,1768741842676,-574.12855637,0.00017099,2]
[402643862,1768741842686,-150.0,0.000171,2]
[402643863,1768741842695,-150.0,0.000171,2]
[402643864,1768741842704,-150.0,0.000171,2]
[402643865,1768741842714,-150.0,0.000171,2]
[402643866,1768741842724,-150.0,0.000171,2]
[402643868,1768741842733,-1512.4270433,0.00017111,2]
[402643870,1768741842742,-248.89680859,0.00017157,2]
[402643872,1768741842752,-164.45281015,0.00017159,2]
[402643873,1768741842761,-1554.6,0.0001726,2]
[402643874,1768741842770,-600.0,0.0001726,2]
[402643875,1768741842780,-1000.0,0.0001726,2]
[402643876,1768741842789,-662.74,0.00017274,2]
[402643877,1768741842798,-3859.0,0.00017321,2]
[402643878,1768741842806,-4348.97472501,0.00017322,2]
[402643879,1768741842816,-3920.07051731,0.00017322,2]
[402643880,1768741842824,-3859.0,0.00017334,2]
[402643882,1768741842834,-3859.0,0.00017413,2]
[402643884,1768741842843,-5448.0,0.00017472,2]
[402643885,1768741842852,-150.0,0.00017474,2]
[402643888,1768741842861,-150.0,0.00017477,2]
[402643891,1768741842871,-1000.0,0.00017516,2]
[402643894,1768741842880,-248.89680859,0.00017529,2]
[402643895,1768741842890,-1554.6,0.00017534,2]
[402643896,1768741842899,-600.0,0.00017534,2]
[402643897,1768741842908,-1000.0,0.00017534,2]
[402643898,1768741842918,-391.4262,0.00017551,2]
[402643899,1768741842927,-150.49,0.00017557,2]
[402643900,1768741842936,-566.0,0.00017565,2]
[402643901,1768741842945,-2439.0,0.00017565,2]
[402643902,1768741842954,-6562.0,0.00017565,2]
[402643903,1768741842963,-3920.07051731,0.00017611,2]
[402643904,1768741842973,-4348.97472501,0.00017611,2]
[402643905,1768741842982,-3191.87447378,0.0001764,2]
[402643906,1768741842991,-595.37131296,0.00017647,2]
[402643907,1768741843000,-166.66,0.00017692,2]
[402643908,1768741843009,-8759.91,0.00017728,5]
[402643909,1768741843018,-5888.0,0.00017729,2]
[402643910,1768741843027,-796.0,0.00017792,2]
[402643911,1768741843037,-2000.0,0.000178,2]
[402643912,1768741843046,-1000.0,0.000178,2]
[402643913,1768741843055,-1554.6,0.00017808,2]
[402643914,1768741843064,-500.0,0.00017808,2]
[402643915,1768741843073,-600.0,0.00017808,2]
[402643916,1768741843083,-1000.0,0.00017808,2]
[402643917,1768741843092,-500.0,0.00017814,2]
[402643918,1768741843101,-246.91358,0.0001782,2]
[402643919,1768741843110,-246.91358,0.0001782,2]
[402643920,1768741843119,-246.91358,0.0001782,2]
[402643921,1768741843131,-246.91358,0.0001782,2]
[402643922,1768741843141,-213.0,0.00017852,2]
[402643923,1768741843150,-150.0,0.00017852,2]
[402643924,1768741843159,-150.0,0.00017852,2]
[402643925,1768741843170,-150.0,0.00017852,2]
[402643926,1768741843179,-150.0,0.00017852,2]
[402643927,1768741843188,-150.0,0.00017852,2]
[402643928,1768741843197,-150.0,0.00017852,2]
[402643929,1768741843206,-150.0,0.00017852,2]
[402643930,1768741843216,-1407.0,0.00017852,2]
[402643931,1768741843225,-615.0,0.00017852,2]
[402643932,1768741843234,-1331.0,0.00017852,2]
[402643933,1768741843244,-3473.0,0.00017852,2]
[402643934,1768741843253,-1268.0,0.00017852,2]
[402643935,1768741843262,-412.0,0.00017852,2]
[402643936,1768741843271,-200.0,0.00017856,2]
[402643937,1768741843281,-500.0,0.00017863,2]
[402643938,1768741843290,-5800.0,0.00017891,2]
[402643939,1768741843299,-500.0,0.00017899,2]
[402643940,1768741843307,-10000.0,0.000179,2]
[402643941,1768741843317,-161.31560848,0.000179,2]
[402643942,1768741843326,-467.49211501,0.000179,2]
[402643943,1768741843334,-467.49211501,0.000179,2]
[402643944,1768741843344,-467.49211501,0.000179,2]
[402643945,1768741843353,-467.49211501,0.000179,2]
[402643946,1768741843362,-467.49211501,0.000179,2]
[402643947,1768741843371,-467.49211501,0.000179,2]
[402643948,1768741843381,-1688.0063006,0.000179,2]
[402643949,1768741843390,-467.49211501,0.000179,2]
[402643950,1768741843400,-467.49211501,0.000179,2]
[402643951,1768741843409,-467.49211501,0.000179,2]
[402643952,1768741843418,-467.49211501,0.000179,2]
[402643953,1768741843427,-467.49211501,0.000179,2]
[402643954,1768741843436,-467.49211501,0.000179,2]
[402643955,1768741843445,-467.49211501,0.000179,2]
[402643956,1768741843454,-467.49211501,0.000179,2]
[402643957,1768741843463,-3920.07051731,0.000179,2]
[402643958,1768741843473,-4348.97472501,0.000179,2]
[402643959,1768741843482,-787.91451326,0.000179,2]
[402643960,1768741843491,-2480.83969998,0.000179,2]
[402643961,1768741843500,-829.5534708,0.000179,2]
[402643962,1768741843509,-1249.39886294,0.000179,2]
[402643963,1768741843518,-248.89680859,0.000179,2]
[402643964,1768741843528,-6796.82866944,0.000179,2]
[402643965,1768741843537,-211.61539095,0.000179,3]
[402643966,1768741843546,-3092.052693,0.000179,2]
[402643967,1768741843555,-500.0,0.000179,2]
[402643968,1768741843564,-500.0,0.000179,2]
[402643969,1768741843573,-500.0,0.000179,2]
[402643970,1768741843583,-500.0,0.000179,2]
[402643971,1768741843592,-500.0,0.000179,2]
[402643972,1768741843602,-500.0,0.000179,2]
[402643973,1768741843611,-500.0,0.00017918,2]
[402643974,1768741843620,-150.0,0.00017924,2]
[402643975,1768741843630,-661.50728786,0.0001797,2]
[402643976,1768741843639,-500.0,0.00017972,2]
[402643977,1768741843648,-765.0,0.00017973,2]
[402643978,1768741843657,-500.0,0.00017973,2]
[402643979,1768741843670,-237.81029679,0.00017973,2]
[402643980,1768741843680,-500.0,0.00017973,2]
[402643981,1768741843689,-500.0,0.00017973,2]
[402643982,1768741843699,-500.0,0.00017973,2]
[402643983,1768741843708,-500.0,0.00017973,2]
[402643984,1768741843718,-500.0,0.00017973,2]
[402643985,1768741843727,-500.0,0.00017973,2]
[402643986,1768741843736,-150.0,0.00017973,2]
[402643987,1768741843747,-155.6514004,0.0001799,2]
[402643988,1768741843756,-155.6514004,0.0001799,2]
[402643989,1768741843766,-155.6514004,0.0001799,2]
[402643990,1768741843775,-567.8712304,0.00017999,2]
[402643991,1768741843784,-261.35951101,0.00017999,2]
[402643992,1768741843793,-155.0,0.00017999,2]
[402643993,1768741843803,-300.0,0.00017999,2]
[402643994,1768741843813,-300.0,0.00017999,2]
[402643995,1768741843823,-551.01907278,0.00017999,2]
[402643996,1768741843832,-500.0,0.00017999,2]
[402643997,1768741843842,-500.0,0.00017999,2]
[402643998,1768741843851,-500.0,0.00017999,2]
[402643999,1768741843860,-500.0,0.00017999,2]
[402644000,1768741843870,-500.0,0.00017999,2]
[402644001,1768741843880,-500.0,0.00017999,2]
[402644002,1768741843890,-500.0,0.00017999,2]
[402644003,1768741843899,-500.0,0.00017999,2]
[402644004,1768741843908,-500.0,0.00017999,2]
[402644005,1768741843917,-500.0,0.00017999,2]
[402644006,1768741843927,-500.0,0.00017999,2]
[402644007,1768741843936,-500.0,0.00017999,2]
[402644008,1768741843945,-500.0,0.00017999,2]
[402644009,1768741843955,-500.0,0.00017999,2]
[402644010,1768741843964,-300.0,0.00017999,2]
[402644011,1768741843973,-666.0,0.00017999,2]
[402644012,1768741843983,-150.0,0.00018,2]
[402644013,1768741843992,-150.0,0.00018,2]
[402644014,1768741844002,-150.0,0.00018,2]
[402644015,1768741844011,-236.45405301,0.00018,2]
[402644016,1768741844021,-265.5663701,0.00018,2]
[402644017,1768741844030,-150.0,0.00018,2]
[402644018,1768741844040,-150.0,0.00018,2]
[402644019,1768741844049,-1002.61682753,0.00018,2]
[402644020,1768741844059,-397357.69238426,0.00018,2]
[402644021,1768741844068,-235387.71457693,0.00018,2]
[402644022,1768741844077,-1504767.9663406,0.00018,2]
[402644034,1768741845773,-4915.957,0.00017565,2]
[402644035,1768741845783,-1471.73482453,0.00018,2]
[402644051,1768742814122,-166.66,0.00014561,2]
[402644052,1768742814145,-313.597,0.00014867,2]
[402644053,1768742814167,-166.66,0.00014868,2]
[402644054,1768742814191,-674.20693483,0.00015068,2]
[402644060,1768742971085,-300.0,0.0001497,2]
[402644061,1768742971110,-3122.565426,0.00014971,2]
[402644064,1768742998974,1037.34051571,0.00012285,2]
[402644065,1768742998995,403.43948429,0.00012285,2]
[402644077,1768743031937,-488.41,0.0001497,2]
[402644078,1768743032202,-711.59,0.0001497,2]
[402644079,1768743032211,-150.0,0.0001497,2]
[402644080,1768743032221,-274.0,0.0001497,2]
[402644081,1768743032230,-481.75995375,0.00014971,2]
[402644082,1768743032250,-389.81584361,0.00014971,2]
[402644083,1768743032298,-17491.31373178,0.00014971,2]
[402644084,1768743032311,-7930.49160298,0.00014971,2]
[402644085,1768743032322,-529.74179822,0.00014971,2]
[402644086,1768743032341,-974.05877356,0.00014971,2]
[402644087,1768743032352,-925.50355784,0.00014971,2]
[402644088,1768743032363,-853.06165973,0.00014971,2]
[402644089,1768743032375,-889.22490028,0.00014971,2]
[402644090,1768743032386,-8358.6192992,0.00014971,2]
[402644096,1768743038032,-3300.52680941,0.00014971,2]
[402644097,1768743038048,-863.51382856,0.00014971,2]
[402644098,1768743038257,-2200.0,0.00014971,2]
[402644099,1768743038268,-2444.83323628,0.00014971,2]
[402644156,1768743040173,-586.17260001,0.00014971,2]
[402644157,1768743040185,-3889.325472,0.00014971,2]
[402644158,1768743040447,-159990.13590679,0.00014971,2]
[402644159,1768743040458,-5000.0,0.00015,2]
[402644160,1768743040468,-500.0,0.00015068,2]
[402644161,1768743040479,-500.0,0.00015068,2]
[402644162,1768743040491,-500.0,0.00015068,2]
[402644163,1768743040501,-500.0,0.00015068,2]
[402644164,1768743040512,-500.0,0.00015068,2]
[402644165,1768743040521,-500.0,0.00015068,2]
[402644166,1768743040531,-500.0,0.00015068,2]
[402644167,1768743040540,-500.0,0.00015068,2]
[402644168,1768743040549,-500.0,0.00015068,2]
[402644169,1768743040559,-530.75558319,0.00015068,2]
[402644170,1768743040568,-500.0,0.00015068,2]
[402644171,1768743040577,-500.0,0.00015068,2]
[402644172,1768743040587,-500.0,0.00015068,2]
[402644173,1768743040596,-500.0,0.00015068,2]
[402644174,1768743040606,-500.0,0.00015068,2]
[402644176,1768743040615,-500.0,0.00015068,2]
[402644178,1768743040624,-500.0,0.00015068,2]
[402644179,1768743040634,-500.0,0.00015068,2]
[402644180,1768743040643,-500.0,0.00015068,2]
[402644181,1768743040655,-500.0,0.00015068,2]
[402644182,1768743040665,-500.0,0.00015068,2]
[402644183,1768743040674,-500.0,0.00015068,2]
[402644184,1768743040683,-500.0,0.00015068,2]
[402644185,1768743040692,-500.0,0.00015068,2]
[402644186,1768743040701,-500.0,0.00015068,2]
[402644187,1768743040710,-1554.6,0.0001507,2]
[402644188,1768743040719,-1018.2026,0.00015071,2]
[402644189,1768743040728,-4847.60495162,0.00015074,2]
[402644190,1768743040737,-269.26769629,0.00015074,2]
[402644191,1768743040747,-4645.33349504,0.00015074,2]
[402644192,1768743040756,-161.31560849,0.000151,2]
[402644193,1768743040765,-500.0,0.0001517,2]
[402644194,1768743040775,-500.0,0.0001517,2]
[402644195,1768743040784,-500.0,0.0001517,2]
[402644196,1768743040793,-500.0,0.0001517,2]
[402644197,1768743040803,-500.0,0.0001517,2]
[402644198,1768743040812,-500.0,0.0001517,2]
[402644199,1768743040821,-510.914429,0.0001517,2]
[402644200,1768743040831,-608.61424855,0.0001517,2]
[402644201,1768743040840,-500.0,0.0001517,2]
[402644202,1768743040850,-500.0,0.0001517,2]
[402644203,1768743040859,-179.37709203,0.0001517,2]
[402644204,1768743040869,-500.0,0.0001517,2]
[402644205,1768743040878,-166.66,0.00015174,2]
[402644206,1768743040887,-285.12441334,0.00015202,2]
[402644207,1768743040896,-500.0,0.00015202,2]
[402644208,1768743040906,-500.0,0.00015257,2]
[402644209,1768743040915,-500.0,0.00015312,2]
[402644210,1768743040925,-3449.62,0.00015328,2]
[402644211,1768743040935,-1554.6,0.00015344,2]
[402644212,1768743040945,-500.0,0.00015366,2]
[402644213,1768743040955,-500.0,0.0001537,2]
[402644214,1768743040964,-500.0,0.0001537,2]
[402644215,1768743040973,-500.0,0.0001537,2]
[402644216,1768743040982,-500.0,0.0001537,2]
[402644217,1768743040991,-4847.60495157,0.00015388,2]
[402644218,1768743041001,-4645.33349495,0.00015388,2]
[402644219,1768743041011,-500.0,0.00015421,2]
[402644220,1768743041020,-500.0,0.00015476,2]
[402644221,1768743041030,-374.25,0.00015476,2]
[402644222,1768743041039,-269.26769626,0.00015478,2]
[402644223,1768743041052,-166.66,0.00015481,2]
[402644224,1768743041062,-500.0,0.00015531,2]
[402644225,1768743041071,-500.0,0.00015586,2]
[402644226,1768743041081,-429.51649506,0.00015616,2]
[402644227,1768743041090,-1554.6,0.00015618,2]
[402644228,1768743041100,-500.0,0.0001564,2]
[402644229,1768743041109,-538.02487405,0.00015695,2]
[402644230,1768743041118,-4847.60495157,0.00015702,2]
[402644231,1768743041128,-4645.33349495,0.00015702,2]
[402644232,1768743041137,-239.03553082,0.00015715,2]
[402644233,1768743041147,-166.66,0.00015787,2]
[402644234,1768743041156,-269.26769626,0.00015881,2]
[402644235,1768743041165,-1554.6,0.00015892,2]
[402644236,1768743041175,-500.0,0.00015973,2]
[402644237,1768743041184,-618.07402305,0.00015973,2]
[402644238,1768743041193,-500.0,0.00015973,2]
[402644239,1768743041202,-500.0,0.00015973,2]
[402644240,1768743041212,-304.23142224,0.00015973,2]
[402644241,1768743041221,-500.0,0.00015973,2]
[402644242,1768743041230,-500.0,0.00015973,2]
[402644243,1768743041240,-43959.50696488,0.00016,4]
[402644244,1768743041249,-4847.60495157,0.00016016,2]
[402644245,1768743041258,-4645.33349495,0.00016016,2]
[402644246,1768743041267,-195.0,0.00016017,2]
[402644247,1768743041277,-250.0,0.00016017,2]
[402644248,1768743041288,-600.0,0.00016017,2]
[402644249,1768743041297,-255.0,0.00016092,2]
[402644250,1768743041307,-166.66,0.00016094,2]
[402644251,1768743041316,-150.0,0.00016164,2]
[402644252,1768743041326,-150.0,0.00016164,2]
[402644253,1768743041335,-500.0,0.00016164,2]
[402644254,1768743041344,-160.85120225,0.00016164,2]
[402644255,1768743041353,-250.17696529,0.00016164,2]
[402644256,1768743041363,-1554.6,0.00016166,2]
[402644257,1768743041372,-150.0,0.000162,2]
[402644258,1768743041381,-150.0,0.000162,2]
[402644259,1768743041390,-150.0,0.000162,2]
[402644260,1768743041400,-150.0,0.000162,2]
[402644261,1768743041409,-150.0,0.000162,2]
[402644262,1768743041418,-170.37649707,0.000162,2]
[402644263,1768743041427,-150.39481531,0.000162,2]
[402644264,1768743041436,-150.62813761,0.000162,2]
[402644265,1768743041445,-150.0,0.000162,2]
[402644266,1768743041454,-150.48546304,0.000162,2]
[402644267,1768743041464,-150.0,0.000162,2]
[402644268,1768743041473,-150.0,0.000162,2]
[402644269,1768743041483,-5000.00173544,0.000162,5]
[402644270,1768743041492,-153.00604463,0.00016219,2]
[402644271,1768743041501,-150.0,0.00016219,2]
[402644272,1768743041510,-500.0,0.00016219,2]
[402644273,1768743041520,-150.0,0.00016274,2]